[Event "Mitropa Cup Open 2024"]
[Site "Apolda"]
[Date "2024.02.16"]
[Round "2.2"]
[White "Svane, Rasmus"]
[Black "Peyrer, Konstantin"]
[Result "1/2-1/2"]
[ECO "D45"]
[WhiteElo "2637"]
[BlackElo "2439"]
[Annotator "TA"]
[PlyCount "115"]
[EventDate "2024.02.15"]
[EventType "team-tourn"]
[EventCountry "GER"]
[SourceTitle "playchess.com"]
[Source "ChessBase"]
[SourceQuality "1"]
[WhiteTeam "Germany"]
[BlackTeam "Austria"]
[WhiteTeamCountry "GER"]
[BlackTeamCountry "AUT"]
[TimeControl "40/5400+30:1800+30"]

{[%evp 40,115,9,16,48,9,15,23,11,6,20,19,69,44,84,76,77,69,84,62,57,64,103,105,102,0,0,0,0,0,0,0,0,0,0,0,0,0,0,0,0,0,0,0,0,0,0,0,0,0,0,0,0,0,0,0,0,0,0,0,0,0,0,0,0,0,0,0,0,0,0,0,0,0,0,0,0,0]} 1. Nf3 {[%emt 0:00:04]} Nf6 {[%emt 0:00:20]} 2. c4 {[%emt 0:00:13]} e6 {[%emt 0:00:24]} 3. Nc3 {[%emt 0:00:52]} d5 {[%emt 0:00:25]} 4. d4 {[%emt 0:00:58]} c6 {[%emt 0:01:03]} 5. e3 {[%emt 0:01:04]} a6 {[%emt 0:00:30]} 6. h3 {[%emt 0:00:18] D45: Semi-Slav: 5 e3.} Nbd7 {[%emt 0:07:53]} 7. Qc2 {[%emt 0:00:09]} dxc4 {[%emt 0:01:04]} 8. a4 {[%emt 0:00:23]} c5 {[%emt 0:03:36]} 9. Bxc4 {[%emt 0:00:10]} cxd4 {[%emt 0:02:06]} 10. exd4 {[%emt 0:00:07]} Nb6 {[%emt 0:01:31]} 11. Bb3 {[%emt 0:02:22]} Bd7 $146 {[%emt 0:02:59]} ({Predecessor:} 11... Be7 12. O-O O-O 13. Rd1 Bd7 14. Ne5 Rc8 15. Qd3 Bc6 16. Bg5 Nfd5 17. Bd2 Nf6 {1-0 Tkachiev,V (2657)-Bacrot,E (2700) Porto Vecchio m 2008 (1)}) 12. Ne5 {[%emt 0:22:33]} Nbd5 {[%emt 0:00:18]} 13. Bxd5 {[%emt 0:21:41]} Nxd5 {[%emt 0:05:36]} 14. Nxd5 {[%emt 0:00:15]} exd5 {[%emt 0:00:04]} 15. O-O {[%emt 0:02:22]} Be7 {[%emt 0:01:49]} 16. Qb3 {[%emt 0:01:48]} f6 {[%emt 0:01:21]} 17. Nd3 {[%emt 0:03:06]} Bc6 {[%emt 0:00:26]} 18. Bd2 {[%emt 0:06:20]} Kf7 {[%emt 0:11:21]} 19. Bb4 {[%emt 0:05:12]} Re8 {[%emt 0:06:22]} 20. Bxe7 {[%emt 0:06:14]} Rxe7 {[%emt 0:00:32]} 21. Rfc1 {[%emt 0:00:50]} Qd6 {[%emt 0:10:43]} 22. Rc5 {[%emt 0:05:06]} Rae8 {[%emt 0:03:46]} 23. Qc3 {[%emt 0:01:09]} Re2 {[%emt 0:04:17]} 24. b3 {[%emt 0:01:43]} R8e4 {[%emt 0:05:56]} 25. Rf1 {[%emt 0:00:49]} Re6 {[%emt 0:10:58]} 26. Nb4 $1 {[%emt 0:01:44]} h6 {[%emt 0:01:02]} 27. Nxc6 $1 {[%emt 0:03:50]} bxc6 {[%emt 0:00:32]} (27... b6 28. Ne5+ fxe5 29. Rc7+ (29. Qf3+ Rf6 $18) 29... Ke8 (29... Kg8 $2 30. Rc8+ Kh7 31. Qd3+ Re4 32. f3 $18) 30. Rxg7 $18) 28. Ra5 {[%emt 0:00:21]} R6e3 {[%emt 0:00:33] [#]} 29. Qc1 $1 {[%emt 0:05:30]} (29. fxe3 $2 Qg3) (29. Qxe3 $6 Rxe3 30. fxe3 Qe7 $11) 29... Rxb3 {[%emt 0:04:36]} 30. Rxa6 {[%emt 0:00:09]} Qb4 {[%emt 0:04:48]} 31. Ra7+ {[%emt 0:02:56]} (31. Rxc6 Qxd4 32. Qc5 Qxc5 (32... Qxa4 $2 33. Rc7+ Kg6 34. Qxd5 $18) 33. Rxc5 Ra3 $11) 31... Kg6 {[%emt 0:05:28] [#]} 32. Qxc6 {[%emt 0:00:02]} ({Only move:} 32. Qf4 $1 $16 {[%cal Rf4g4] Qg4+ would kill now.} Re7 33. Qg4+ Kf7 34. Qh5+ Ke6 35. Rxe7+ Kxe7 36. Qe2+ Kd6 37. Qe8) 32... Rb1 $1 $11 {[%emt 0:00:28]} (32... Qxd4 $2 {loses.} 33. Qd7 f5 34. Ra6+ Rb6 35. Qa7 Rxa6 36. Qxa6+ (36. Qxd4 Re4 $18) 36... Kh7 37. Qxe2 $18) 33. Rxb1 {[%emt 0:01:18]} (33. Qxd5 {is a self mate.} Rxf1+ 34. Kh2 Qb8+ (34... Rfxf2 $2 35. Qf7+ Kg5 36. Qxg7+ Kf4 37. Qxf6+ Ke4 38. Re7+ Kd3 39. Qg6+ Kxd4 40. Qg4+ Kc3 41. Qxe2 $19) (34... Rfxf2 35. Qf7+ Kg5 36. Qxg7+ Kf4 37. Qxf6+ Ke4 38. Re7+ Kd3 39. Qg6+ Kxd4 40. Qg4+ Kc3 41. Rxe2 $19)) 33... Qxb1+ {[%emt 0:00:04]} 34. Kh2 {[%emt 0:00:05]} Qb8+ {[%emt 0:01:01]} 35. Qc7 $1 {[%emt 0:00:28]} Qxc7+ {[%emt 0:00:03]} 36. Rxc7 {[%emt 0:00:06]} Rxf2 {[%emt 0:01:33]} 37. Rc5 {[%emt 0:00:56]} Ra2 {[%emt 0:00:06]} 38. a5 {[%emt 0:00:11]} (38. Rxd5 Rxa4 39. h4 Kf7 $11) 38... Ra4 {[%emt 0:00:06]} 39. Rxd5 {[%emt 0:00:07]} Kf7 {[%emt 0:00:04]} 40. Rd7+ {[%emt 0:01:38]} Kg6 {[%emt 0:00:06]} 41. Rd5 {[%emt 0:08:38]} Kf7 {[%emt 0:00:19]} 42. Rb5 {[%emt 0:00:50]} Rxd4 {[%emt 0:00:06]} 43. Rb7+ {[%emt 0:01:01]} (43. a6 $5 Ra4 $8 44. Rb7+ Kg6 45. a7 $11) 43... Kg6 {[%emt 0:00:07]} 44. a6 {[%emt 0:00:06]} Ra4 {[%emt 0:00:22]} 45. a7 {[%emt 0:00:07]} f5 {[%emt 0:02:56]} 46. Kg3 {[%emt 0:00:16]} Kf6 {[%emt 0:00:06]} 47. Kf3 {[%emt 0:00:37]} Ra3+ {[%emt 0:00:48]} 48. Ke2 {[%emt 0:00:06]} g5 {[%emt 0:00:04]} 49. Kd2 {[%emt 0:05:04]} g4 {[%emt 0:00:31]} 50. hxg4 {[%emt 0:01:36]} fxg4 {[%emt 0:00:11]} 51. Kc2 {[%emt 0:02:58]} h5 {[%emt 0:03:36]} 52. Kb2 {[%emt 0:00:10]} Ra5 {[%emt 0:00:05]} 53. Kc3 {[%emt 0:01:58]} h4 {[%emt 0:00:10]} 54. Kb4 {[%emt 0:01:39]} Ra1 {[%emt 0:00:07]} 55. Rb6+ {[%emt 0:04:00]} Kg7 {[%emt 0:00:17]} 56. Rb7+ {[%emt 0:00:40]} Kf6 {[%emt 0:00:05]} 57. Rb6+ {[%emt 0:03:53]} Kg7 {[%emt 0:00:07]} 58. Rb7+ {[%emt 0:10:42]} 1/2-1/2

[Event "Mitropa Cup Open 2024"]
[Site "Apolda"]
[Date "2024.02.16"]
[Round "2.3"]
[White "Morgunov, Marc"]
[Black "Donchenko, Alexander"]
[Result "0-1"]
[ECO "B10"]
[WhiteElo "2368"]
[BlackElo "2643"]
[Annotator "TA"]
[PlyCount "86"]
[EventDate "2024.02.15"]
[EventType "team-tourn"]
[EventCountry "GER"]
[SourceTitle "playchess.com"]
[Source "ChessBase"]
[SourceQuality "1"]
[WhiteTeam "Austria"]
[BlackTeam "Germany"]
[WhiteTeamCountry "AUT"]
[BlackTeamCountry "GER"]
[TimeControl "40/5400+30:1800+30"]

{[%evp 27,86,-7,40,-20,0,0,0,0,0,0,31,0,111,104,113,108,209,208,230,187,370,373,454,445,422,404,417,384,342,221,201,121,158,162,275,37,17,42,50,-80,-92,-291,0,-326,99,-264,-257,-345,-334,-546,-542,-548,-554,-535,-470,-1981,-1923,-2542,-2299,-1869,-691]} 1. e4 {[%emt 0:00:07]} c6 {[%emt 0:00:06]} 2. Nf3 {[%emt 0:00:48]} d5 {[%emt 0:00:06]} 3. d3 {[%emt 0:00:34]} g6 {[%emt 0:00:10]} 4. e5 {[%emt 0:00:50]} c5 {[%emt 0:01:11]} 5. c3 {[%emt 0:04:23]} Nc6 {[%emt 0:00:27]} 6. h3 {[%emt 0:14:49] B10: Caro-Kann: 2 d3 and 2 c4.} f6 {[%emt 0:07:49]} 7. exf6 {[%emt 0:01:55]} Nxf6 {[%emt 0:00:29]} 8. d4 {[%emt 0:02:07]} Bg7 {[%emt 0:01:21]} 9. dxc5 {[%emt 0:07:06]} O-O {[%emt 0:01:43]} 10. Be2 {[%emt 0:00:39]} e5 $146 {[%emt 0:09:49]} ({Predecessor:} 10... Ne4 11. Be3 e5 12. Nbd2 Nf6 13. Nb3 Qe7 14. O-O Kh8 15. Re1 Be6 16. Bb5 Nd7 {1-0 Abrahamyan,T (2262)-Peycheva,G (2287) WchT (Women) Pool-B rapid 2023 (2.3)}) 11. O-O {[%emt 0:01:57]} Ne4 {[%emt 0:04:19]} 12. b4 {[%emt 0:18:45]} a5 {[%emt 0:01:26]} 13. b5 {[%emt 0:01:30]} Ne7 {[%emt 0:01:26]} 14. Ba3 {[%emt 0:01:26]} Qc7 {[%emt 0:02:07]} (14... Nf5 $11) 15. Qb3 {[%emt 0:18:41]} (15. c4 $14 Be6 16. Qc2) 15... Be6 {[%emt 0:12:16]} (15... Nxc5 16. b6 Nxb3 17. bxc7 Nxa1 18. Bxe7) 16. b6 {[%emt 0:01:16]} Qd7 {[%emt 0:00:17]} 17. Nbd2 {[%emt 0:00:37]} Nxd2 $1 {[%emt 0:05:07]} 18. Nxd2 {[%emt 0:00:04]} Nc6 {[%emt 0:00:32]} 19. Rad1 {[%emt 0:00:58]} Kh8 {[%emt 0:03:11]} (19... a4 $11 20. Qc2 Qe7) 20. Ne4 $1 $16 {[%emt 0:02:12]} a4 {[%emt 0:01:39]} 21. Qc2 {[%emt 0:04:23]} Rf4 {[%emt 0:06:18]} (21... Bf5 $16 {keeps fighting.}) 22. Nd6 $18 {[%emt 0:01:01]} Rh4 {[%emt 0:01:24]} 23. Bc1 {[%emt 0:04:46]} Bxh3 $2 {[%emt 0:03:38]} (23... Ra5 {was worth a try.}) 24. Qd3 $18 {[%emt 0:01:23]} (24. gxh3 Qxh3 25. Nf7+ Kg8) 24... Be6 {[%emt 0:24:37]} 25. Bg5 {[%emt 0:00:58]} Rf4 {[%emt 0:00:03]} 26. Bxf4 {[%emt 0:00:52]} exf4 {[%emt 0:00:02]} 27. Rfe1 {[%emt 0:01:40]} Ne5 {[%emt 0:01:22]} 28. Qb5 {[%emt 0:00:51]} Qe7 {[%emt 0:00:34]} 29. f3 {[%emt 0:01:33]} Qg5 {[%emt 0:02:23]} 30. Rf1 {[%emt 0:01:47]} (30. Nxb7 Bh3 31. g4 Qh4 (31... fxg3 $2 32. Rd3 $19) 32. Kh1 Bxg4+ 33. Kg1 Qg3+ (33... Bxf3 $2 34. Bxf3 Nxf3+ 35. Kf1 $19) 34. Kh1 Nxf3) 30... Bf6 {[%emt 0:03:20] [#]} (30... Qe7 $142 31. Rd4 a3) 31. c6 $2 {[%emt 0:01:20]} (31. Nxb7 $1 $18 Qh6 32. Qb2) 31... bxc6 $14 {[%emt 0:00:57]} 32. b7 {[%emt 0:00:38]} Rb8 {[%emt 0:00:01]} 33. Qc5 {[%emt 0:02:45]} (33. Qa5 $14 {keeps the upper hand.} Bd8 34. Qb4 (34. Qxa4 Bb6+ 35. Rd4 Bc5 $19)) 33... Be7 $1 $17 {[%emt 0:02:11]} 34. Ba6 $2 {[%emt 0:01:30]} (34. Qb4 $17 {was forced.}) 34... Kg8 $2 {[%emt 0:01:59]} (34... Rd8 35. Qb4 Bxd6 36. Qxd6 Rxd6 37. b8=Q+ Rd8 38. Qb4 $14) (34... Qf6 $19 35. c4 Bg8) 35. Rf2 $2 {[%emt 0:00:52][%mdl 8192] [#]} (35. c4 $11) 35... Bd7 $2 {[%emt 0:01:32] [#]} ({Worse is} 35... Rd8 36. Qb4 Rb8 (36... Bxd6 37. Qxd6 Rxd6 38. b8=Q+ Rd8 39. Qc7 $14) 37. Rdd2 $11) ({Black should play} 35... Qf6 $1 $19 {Strongly threatening ...Bf7.} 36. c4 Bf7) 36. c4 $2 {[%emt 0:00:54][%mdl 8192]} (36. Rxd5 $1 $16 {is necessary to keep the advantage.} cxd5 37. Qc7) 36... Qf6 $19 {[%emt 0:00:27]} 37. cxd5 {[%emt 0:00:05]} Bxd6 {[%emt 0:00:07]} 38. Qd4 $2 {[%emt 0:00:30]} (38. Qc3 {might work better.} c5 39. Kf1) 38... c5 $19 {[%emt 0:00:25]} 39. Qc3 {[%emt 0:00:47]} c4 {[%emt 0:00:50]} 40. Re1 {[%emt 0:00:26]} Kf7 {[%emt 0:01:31]} 41. Rfe2 {[%emt 0:05:38]} (41. Re4 $142) 41... Bc5+ $19 {[%emt 0:04:13]} 42. Kf1 {[%emt 0:00:20]} Qh4 {[%emt 0:00:36]} 43. Rc2 {[%emt 0:01:15]} Nd3 {[%emt 0:02:51]} (43... Qh1+ 44. Ke2 Qxg2+ 45. Kd1 Qxf3+ 46. Qxf3 Nxf3 47. Rf1 $19) (43... Bf5 $142 44. Bxc4 Bxc2 (44... Rxb7 $2 45. d6+ Kf8 46. Ba6 $19) (44... Qh1+ $2 45. Ke2 $19) 45. Qxc2 Nxc4 (45... Qh1+ $2 46. Ke2 $19)) 0-1

[Event "Mitropa Cup Open 2024"]
[Site "Apolda"]
[Date "2024.02.16"]
[Round "2.4"]
[White "Svane, Frederik"]
[Black "Dotzer, Lukas"]
[Result "1-0"]
[ECO "B48"]
[WhiteElo "2625"]
[BlackElo "2335"]
[Annotator "TA"]
[PlyCount "77"]
[EventDate "2024.02.15"]
[EventType "team-tourn"]
[EventCountry "GER"]
[SourceTitle "playchess.com"]
[Source "ChessBase"]
[SourceQuality "1"]
[WhiteTeam "Germany"]
[BlackTeam "Austria"]
[WhiteTeamCountry "GER"]
[BlackTeamCountry "AUT"]
[TimeControl "40/5400+30:1800+30"]

{[%evp 14,77,28,18,40,18,19,15,26,15,20,5,43,31,53,52,58,56,88,80,81,81,85,91,95,95,95,93,124,112,142,128,122,70,143,125,207,187,245,243,294,293,280,238,412,400,495,435,747,724,772,783,783,778,727,612,920,796,813,793,817,799,804,794,771,764]} 1. e4 {[%emt 0:00:11]} c5 {[%emt 0:00:04]} 2. Nf3 {[%emt 0:00:05]} e6 {[%emt 0:00:06]} 3. d4 {[%emt 0:00:16]} cxd4 {[%emt 0:00:06]} 4. Nxd4 {[%emt 0:00:05]} Nc6 {[%emt 0:00:10]} 5. Nc3 {[%emt 0:00:27]} Qc7 {[%emt 0:00:08]} 6. Be3 {[%emt 0:00:34]} a6 {[%emt 0:00:10]} 7. a3 {[%emt 0:00:32]} b5 {[%emt 0:00:37]} 8. Nxc6 {[%emt 0:00:08]} Qxc6 {[%emt 0:00:15]} 9. h4 {[%emt 0:00:51][%cal Bh2h4,Bh4h5][%mdl 32]} Bb7 {[%emt 0:04:45]} 10. h5 $1 {[%emt 0:02:09]} Nf6 {[%emt 0:04:27] The position is equal.} 11. f3 {[%emt 0:02:26]} Bd6 {[%emt 0:07:55]} 12. Qd4 {[%emt 0:00:14] [#] Strongly threatening e5.} Bg3+ {[%emt 0:06:09]} 13. Bf2 {[%emt 0:01:30]} e5 {[%emt 0:08:05]} 14. Qd2 {[%emt 0:09:56]} Bf4 {[%emt 0:07:06]} 15. Be3 {[%emt 0:01:19]} Bg3+ {[%emt 0:07:33]} 16. Kd1 {[%emt 0:18:32]} d5 {[%emt 0:06:29]} 17. Nxd5 {[%emt 0:02:30]} Nxd5 {[%emt 0:01:22]} 18. exd5 {[%emt 0:00:02]} Qxd5 {[%emt 0:08:30]} 19. Qxd5 {[%emt 0:05:29]} Bxd5 {[%emt 0:01:25]} 20. a4 {[%emt 0:16:15]} O-O-O {[%emt 0:09:35]} 21. Kc1 {[%emt 0:04:06]} Bc6 {[%emt 0:06:36] [#]} 22. axb5 $1 {[%emt 0:01:18]} axb5 {[%emt 0:00:56]} 23. Ra5 {[%emt 0:08:37]} (23. Bd3 $16) 23... b4 {[%emt 0:06:17]} (23... e4 $1 $14) 24. Bd3 $16 {[%emt 0:02:38]} Kb8 {[%emt 0:10:18]} (24... b3 $16 25. Rc5 Rd6) 25. Ra6 {[%emt 0:03:38]} Bb7 {[%emt 0:03:15]} (25... Rd6 $142 26. Rh3 Bf4) 26. Rb6 $18 {[%emt 0:00:07]} Kc7 {[%emt 0:00:35]} 27. Rxb4 {[%emt 0:00:12] Threatens to win with Bb6+.} Ra8 {[%emt 0:00:24] ...Ra1+ would now be deadly.} 28. Kd2 {[%emt 0:01:00]} f5 $2 {[%emt 0:00:41]} (28... g6 {keeps fighting.} 29. Rh3 Bf4 30. Rc4+ Kd6 31. Bxf4 exf4 32. hxg6 (32. Rxf4 Bc8 $18) 32... hxg6 33. Rxh8 (33. Rxf4 Rxh3 34. gxh3 f5 $18) 33... Rxh8 34. Rxf4 f5) 29. Bxf5 {[%emt 0:00:34]} Rhd8+ {[%emt 0:00:22]} 30. Bd3 {[%emt 0:00:22] And now Bb6+ would win. White is clearly winning.} Rd6 {[%emt 0:00:36]} (30... Bf4 $142 31. Rc4+ Kb8 32. Bxf4 exf4 33. Rxf4 h6) 31. Rg4 {[%emt 0:00:13][%csl LRg3,LRg7]} Bf4 {[%emt 0:00:28]} 32. Bxf4 {[%emt 0:02:53]} exf4 {[%emt 0:00:08]} 33. Rxg7+ {[%emt 0:00:14]} Kb6 {[%emt 0:00:10]} 34. Rh4 {[%emt 0:00:42]} Ra4 {[%emt 0:01:10]} 35. b3 {[%emt 0:00:19]} Rad4 {[%emt 0:00:11]} 36. Kc3 {[%emt 0:00:08]} h6 {[%emt 0:00:25]} 37. Rg6 {[%emt 0:00:06]} Kc7 {[%emt 0:00:45]} 38. Rxd6 {[%emt 0:00:07]} Rxd6 {[%emt 0:00:06]} 39. Rxf4 {[%emt 0:00:01] Weighted Error Value: White=0.16 (very precise) /Black=0.41.  Mistake:       	White=1     	Black=5      Inaccurate:     	---       	Black=3      OK:         	White=9     	Black=4      Best:        	White=4     	---        Strong:       	White=1     	---} 1-0

[Event "Mitropa Cup Open 2024"]
[Site "Apolda"]
[Date "2024.02.16"]
[Round "2.5"]
[White "Krstulovic, Alex"]
[Black "Vykouk, Jan"]
[Result "1/2-1/2"]
[ECO "E97"]
[WhiteElo "2414"]
[BlackElo "2493"]
[Annotator "RC"]
[PlyCount "94"]
[EventDate "2024.02.15"]
[EventType "team-tourn"]
[EventCountry "GER"]
[SourceTitle "playchess.com"]
[Source "ChessBase"]
[SourceQuality "1"]
[WhiteTeam "Hungary"]
[BlackTeam "Czech Republic"]
[WhiteTeamCountry "HUN"]
[BlackTeamCountry "CZE"]
[TimeControl "40/5400+30:1800+30"]

1. d4 {[%emt 0:00:05]} Nf6 {[%emt 0:00:04]} 2. c4 {[%emt 0:00:04]} g6 {[%emt 0:00:50]} 3. Nc3 {[%emt 0:00:07]} Bg7 {[%emt 0:00:04]} 4. e4 {[%emt 0:00:05]} d6 {[%emt 0:00:03]} 5. Be2 {[%emt 0:00:05]} O-O {[%emt 0:00:10]} 6. Nf3 {[%emt 0:00:04]} e5 {[%emt 0:00:14]} 7. O-O {[%emt 0:00:06]} Nc6 {[%emt 0:00:03]} 8. d5 {[%emt 0:00:05]} Ne7 {[%emt 0:00:02]} 9. Kh1 {[%emt 0:00:05]} Kh8 {[%emt 0:00:38]} 10. Ng1 {[%emt 0:02:37]} Nd7 {[%emt 0:01:31]} 11. f4 {[%emt 0:00:28]} f5 {[%emt 0:01:50]} 12. Nf3 {[%emt 0:07:44]} exf4 {[%emt 0:03:09]} 13. Bxf4 {[%emt 0:01:55]} h6 {[%emt 0:04:50]} 14. exf5 {[%emt 0:03:32]} Nxf5 {[%emt 0:01:08]} 15. g4 {[%emt 0:07:12]} g5 {[%emt 0:12:31]} 16. gxf5 {[%emt 0:09:44]} gxf4 {[%emt 0:00:05]} 17. Nd4 {[%emt 0:03:18]} Qh4 {[%emt 0:09:11]} 18. Ncb5 {[%emt 0:17:12]} Nc5 {[%emt 0:00:33]} 19. Nxc7 {[%emt 0:03:45]} Rb8 {[%emt 0:03:33]} 20. Qd2 {[%emt 0:20:15]} Bxf5 {[%emt 0:10:42]} 21. Nxf5 {[%emt 0:02:31]} Rxf5 {[%emt 0:00:05]} 22. Bf3 {[%emt 0:00:24]} Qe7 {[%emt 0:04:39]} 23. Nb5 {[%emt 0:00:49]} a6 {[%emt 0:01:49]} 24. Nd4 {[%emt 0:01:52]} Bxd4 {[%emt 0:04:26]} 25. Qxd4+ {[%emt 0:00:03]} Qe5 {[%emt 0:00:07]} 26. Rad1 {[%emt 0:01:33]} a5 {[%emt 0:02:29]} 27. Qd2 {[%emt 0:10:39]} Rg8 {[%emt 0:03:58]} 28. Rde1 {[%emt 0:02:17]} Qf6 {[%emt 0:00:15]} 29. Qxa5 {[%emt 0:02:44]} Qxb2 {[%emt 0:00:06]} 30. Qc7 {[%emt 0:01:41]} Qf6 {[%emt 0:05:58]} 31. Rg1 {[%emt 0:02:11]} Rfg5 {[%emt 0:04:54]} 32. Rxg5 {[%emt 0:00:08]} Qxg5 {[%emt 0:00:09]} 33. Qe7 {[%emt 0:00:29]} Qxe7 {[%emt 0:06:54]} 34. Rxe7 {[%emt 0:00:01]} Nd3 {[%emt 0:00:11]} 35. h4 {[%emt 0:01:37]} Rg3 {[%emt 0:00:04]} 36. Be2 {[%emt 0:00:31]} Ne5 {[%emt 0:04:29]} 37. c5 {[%emt 0:00:04]} f3 {[%emt 0:00:04]} 38. cxd6 {[%emt 0:00:44]} fxe2 {[%emt 0:11:52]} 39. Rxe5 {[%emt 0:00:05]} Rd3 {[%emt 0:00:03]} 40. Rxe2 {[%emt 0:00:19]} Rxd5 {[%emt 0:00:05]} 41. Re6 {[%emt 0:05:41]} Kg7 {[%emt 0:00:08]} 42. Kg2 {[%emt 0:01:07]} h5 {[%emt 0:06:47]} 43. Kf3 {[%emt 0:01:44]} Kf7 {[%emt 0:00:11]} 44. Rh6 {[%emt 0:00:05]} Ke8 {[%emt 0:01:04]} 45. Ke4 {[%emt 0:01:09]} Ra5 {[%emt 0:00:34]} 46. Rh7 {[%emt 0:03:19]} Rxa2 {[%emt 0:01:18]} 47. Rxh5 {[%emt 0:01:01]} Ra4+ {[%emt 0:02:20]} 1/2-1/2

[Event "Mitropa Cup Open 2024"]
[Site "Apolda"]
[Date "2024.02.16"]
[Round "2.6"]
[White "Kraus, Tomas"]
[Black "Vanczak, Tamas"]
[Result "1/2-1/2"]
[ECO "D05"]
[WhiteElo "2484"]
[BlackElo "2431"]
[Annotator "TA"]
[PlyCount "60"]
[EventDate "2024.02.15"]
[EventType "team-tourn"]
[EventCountry "GER"]
[SourceTitle "playchess.com"]
[Source "ChessBase"]
[SourceQuality "1"]
[WhiteTeam "Czech Republic"]
[BlackTeam "Hungary"]
[WhiteTeamCountry "CZE"]
[BlackTeamCountry "HUN"]
[TimeControl "40/5400+30:1800+30"]

{[%evp 12,60,15,12,21,7,14,0,0,0,0,0,10,0,20,0,9,0,42,16,-9,0,31,28,41,47,40,36,50,39,39,-532,-31,-33,-34,-29,0,0,0,0,0,0,0,0,0,0,0,0,0,0,0]} 1. d4 {[%emt 0:00:10]} d5 {[%emt 0:00:26]} 2. Nf3 {[%emt 0:00:23]} e6 {[%emt 0:00:13]} 3. e3 {[%emt 0:01:17]} Nf6 {[%emt 0:01:15]} 4. Bd3 {[%emt 0:00:47]} c5 {[%emt 0:04:23]} 5. b3 {[%emt 0:02:59]} Nbd7 {[%emt 0:03:43]} 6. O-O {[%emt 0:03:14]} Bd6 {[%emt 0:01:20]} 7. Bb2 {[%emt 0:00:53]} b6 {[%emt 0:04:19]} 8. a4 {[%emt 0:05:59]} O-O {[%emt 0:04:01]} 9. c4 {[%emt 0:08:52]} Bb7 {[%emt 0:08:57]} 10. Nc3 {[%emt 0:02:46][%cal Bb1c3,Bc3e2,Be2d4][%mdl 32]} a6 {[%emt 0:06:22]} 11. cxd5 {[%emt 0:11:45]} exd5 {[%emt 0:00:41]} 12. Ne2 {[%emt 0:01:43]} Ne4 {[%emt 0:08:04]} 13. dxc5 {[%emt 0:03:29]} Ndxc5 {[%emt 0:05:33]} 14. Ned4 {[%emt 0:01:06]} Bc8 {[%emt 0:04:32] Against Nf5} 15. b4 {[%emt 0:03:42]} Nxd3 {[%emt 0:01:43]} 16. Qxd3 {[%emt 0:00:49]} Qf6 {[%emt 0:06:24]} 17. Qb3 {[%emt 0:11:33]} Qg6 {[%emt 0:01:33]} 18. Qxd5 {[%emt 0:05:30] Threatens to win with Nh4.} Be6 $1 {[%emt 0:00:15]} (18... Bh3 $2 19. Nh4 Qg4 20. Ndf5 Bxg2 21. Nxg2 $18) 19. Nxe6 {[%emt 0:14:37]} fxe6 {[%emt 0:00:07]} 20. Qd1 {[%emt 0:01:45]} Rad8 {[%emt 0:04:18][%cal Od6h2]} 21. Nd4 $2 {[%emt 0:01:40][%mdl 8192] [#]} (21. Nh4 Qg5 22. Nf3 Bxh2+ 23. Kxh2 Qh5+ 24. Kg1 Rxd1 25. Raxd1 h6 $19) (21. Bd4 $14) 21... Nxf2 $1 {[%emt 0:04:55][%mdl 512]} 22. Rxf2 $15 {[%emt 0:01:44] [#]} Bxh2+ $1 {[%emt 0:00:13]} 23. Kf1 $1 {[%emt 0:01:35]} Rxf2+ {[%emt 0:00:15]} (23... e5 $5 24. Rxf8+ Rxf8+ 25. Nf3 e4 $11) 24. Kxf2 {[%emt 0:00:04] aiming for Qb3. The position is equal.} Qg3+ {[%emt 0:00:26]} 25. Kf1 {[%emt 0:01:56] Qb3 would now be deadly.} Qxe3 {[%emt 0:12:30]} 26. Qg4 $1 {[%emt 0:00:42][%cal Oa1e1] Hoping for Re1!} Rf8+ $1 {[%emt 0:08:39]} ({Don't go for} 26... Be5 $2 27. Ra3 (27. Nxe6 $2 {is the wrong capture.} Rd2 $19) (27. Qxe6+ Kh8 $11) 27... Qh6 28. Rd3 $18 (28. Nxe6 $2 Qh1+ 29. Ke2 Qd1+ 30. Ke3 Qxg4 $19)) 27. Nf3 {[%emt 0:00:06][%csl Gb2][%cal Rg4g7]} Qd3+ {[%emt 0:00:06]} 28. Ke1 {[%emt 0:01:12][%csl Gb2][%cal Rg4g7]} Qe3+ {[%emt 0:00:06]} 29. Kf1 {[%emt 0:01:34][%csl Gb2][%cal Rg4g7]} Qd3+ {[%emt 0:00:06]} 30. Ke1 {[%emt 0:00:08][%csl Gb2][%cal Rg4g7]} Qe3+ {[%emt 0:00:05] Weighted Error Value: White=0.31/Black=0.43.  Loses game:     	White=1     	---        Missed win:     	---       	Black=1      Inaccurate:     	White=1     	Black=3      OK:         	White=5     	Black=6      Best:        	White=6     	Black=4      Strong:       	White=2     	Black=2      Brilliant:      	---       	Black=1} 1/2-1/2